bitfinex-derivatives/quotes_ETHF0:USTF0_20240901
["timestamp","ask_amount","ask_price","bid_price","bid_amount"]
[1725200560565,5.53945845,2447.5,2446.5,3.61655]
[1725200560566,3.2078,2447.1,2446.5,3.61655]
[1725200560769,4.63996303,2447.3,2446.5,3.2078]
[1725200561076,0.4086,2447.5,2446.7,0.40872]
[1725200561271,1.04719098,2447.6,2446.6,5.26682588]
[1725200561573,8.53676651,2447.5,2446.9,0.00613234]
[1725200561760,7.48957553,2447.5,2446.9,0.00613234]
[1725200562168,8.53676651,2447.5,2446.9,0.00613234]
[1725200562363,0.40866,2447.2,2446.9,0.00613234]
[1725200562762,3.2078,2447.1,2446.9,0.00613234]
[1725200562964,7.87908483,2447.1,2446.9,0.00613234]
[1725200563162,3.61647,2447.1,2446.9,0.00613234]
[1725200563368,0.40868,2447.0,2446.9,0.00613234]
[1725200563773,4.49508,2447.0,2446.9,0.00613234]
[1725200564275,14.67419677,2447.0,2446.2,3.2078]
[1725200564480,4.58779677,2447.0,2446.2,3.2078]
[1725200564669,0.40873,2446.7,2446.2,3.2078]
[1725200565177,3.2078,2446.8,2446.2,0.00613234]
[1725200565385,0.40875,2446.6,2446.2,0.00613234]
[1725200565680,0.40877,2446.5,2446.2,0.00613234]
[1725200566171,0.40875,2446.6,2446.2,0.00613234]
[1725200566377,4.7213545,2446.7,2446.2,0.00613234]
[1725200566576,0.40875,2446.6,2446.2,0.00613234]
[1725200567172,4.7213545,2446.7,2446.2,0.00613234]
[1725200567484,0.40875,2446.6,2446.2,0.00613234]
[1725200567772,1.04719098,2446.9,2446.4,0.40877]
[1725200567973,4.66366098,2447.1,2446.4,0.40877]
[1725200568180,0.40868,2447.0,2446.3,0.40879]
[1725200568579,0.40869,2447.0,2446.3,0.40879]
[1725200568879,0.40868,2447.0,2446.4,0.40877]
[1725200569477,0.40867,2447.1,2446.5,0.40875]
[1725200569878,1.04719098,2447.2,2446.4,3.2078]
[1725200569879,1.45584098,2447.2,2446.6,0.40874]
[1725200570080,1.45584098,2447.2,2446.4,3.2078]
[1725200570081,0.40871,2446.9,2446.4,3.2078]
[1725200570380,7.92220789,2447.1,2446.4,3.2078]
[1725200570577,9.99107887,2447.1,2446.4,3.2078]
[1725200570980,5.27667098,2447.1,2446.4,3.2078]
[1725200571188,1.04719098,2447.1,2446.5,0.40876]
[1725200571381,1.45585098,2447.2,2446.7,3.2078]
[1725200571683,0.40867,2447.1,2446.7,3.2078]
[1725200571985,0.40869,2447.0,2446.4,0.40878]
[1725200572372,0.40872,2446.8,2446.3,3.2078]
[1725200572776,0.4087,2446.9,2446.3,3.61659]
[1725200573082,0.40869,2447.0,2446.4,0.40877]
[1725200573386,0.40872,2446.8,2446.3,3.2078]
[1725200573585,0.4087,2446.9,2446.3,3.61659]
[1725200573878,0.40872,2446.8,2446.3,3.2078]
[1725200574073,1.04719098,2447.0,2446.3,3.2078]
[1725200574474,5.57755017,2446.9,2446.3,3.2078]
[1725200574686,4.25499098,2446.8,2446.2,0.00613234]
[1725200574985,0.40879,2446.4,2446.2,0.00613234]
[1725200575578,0.00613234,2446.5,2446.2,0.00613234]
[1725200575579,0.41490234,2446.5,2446.2,0.00613234]
[1725200575782,0.40878,2446.4,2446.2,0.00613234]
[1725200576181,0.4088,2446.3,2446.2,0.00613234]
[1725200576779,4.4968,2446.3,2446.2,0.00613234]
[1725200577181,3.2078,2446.4,2446.2,0.00613234]
[1725200577377,0.00613234,2446.5,2446.2,0.00613234]
[1725200577590,0.00613234,2446.5,2446.2,0.41493234]
[1725200577778,0.00613234,2446.5,2446.2,0.00613234]
[1725200577977,0.00613234,2446.5,2446.4,0.40878]
[1725200578176,0.00613234,2446.5,2446.4,3.61658]
[1725200578375,0.00613234,2446.5,2446.4,13.70378]
[1725200578786,1.80949098,2447.2,2446.7,0.40872]
[1725200578787,1.04719098,2447.2,2446.7,0.40872]
[1725200578993,1.04719098,2447.2,2446.4,8.61645142]
[1725200579203,1.04719098,2447.5,2447.0,0.40868]
[1725200579488,1.04719098,2447.5,2446.4,9.52744447]
[1725200579792,0.40867,2447.1,2446.6,8.82600023]
[1725200579986,0.41478234,2447.2,2446.6,8.82600023]
[1725200580192,0.41478234,2447.2,2446.7,0.40872]
[1725200580490,0.00613234,2447.2,2446.6,8.74104882]
[1725200580890,0.40869,2447.0,2446.4,1.23537]
[1725200581293,1.04719098,2447.1,2446.5,5.23827298]
[1725200581702,0.40869,2447.0,2446.4,0.40878]
[1725200581903,5.30422312,2447.1,2446.4,0.40878]
[1725200581904,0.4087,2446.9,2446.4,0.40878]
[1725200582103,0.40871,2446.8,2446.3,8.54909]
[1725200582302,1.04719098,2447.0,2446.3,8.1403]
[1725200582602,4.58141181,2446.7,2446.3,7.3558]
[1725200582791,4.58141181,2446.7,2446.3,3.2078]
[1725200582988,0.40879,2446.4,2446.2,0.00613234]
[1725200583196,1.04719098,2446.5,2446.2,0.00613234]
[1725200583598,0.4088,2446.3,2446.2,0.00613234]
[1725200584103,1.45599098,2446.3,2446.2,0.00613234]
[1725200585204,1.04719098,2446.3,2446.2,0.00613234]
[1725200585406,1.04719098,2446.4,2446.2,4.09413234]
[1725200585604,1.45596098,2446.5,2446.2,0.00613234]
[1725200585805,1.04719098,2446.4,2446.2,0.00613234]
[1725200586503,1.57078647,2446.5,2446.2,4.09413234]
[1725200586504,1.45595098,2446.5,2446.2,4.09413234]
[1725200586705,1.04719098,2446.4,2446.2,0.00613234]
[1725200587091,1.04719098,2446.5,2446.2,4.09413234]
[1725200587399,1.04719098,2446.5,2446.2,0.00613234]
[1725200587599,1.04719098,2446.6,2446.2,0.41494234]
[1725200587899,1.04719098,2446.7,2446.2,4.09413234]
[1725200588202,1.04719098,2446.8,2446.4,0.40877]
[1725200588509,2.09967358,2447.0,2446.2,0.00613234]
[1725200588510,1.04719098,2447.1,2446.5,5.24074881]
[1725200588694,1.05332332,2447.2,2446.8,0.4087]
[1725200588901,1.05332332,2447.2,2446.9,0.8281]
[1725200589305,1.04719098,2447.1,2446.9,0.8281]
[1725200589509,1.05332332,2447.2,2446.9,0.8281]
[1725200589809,1.46197332,2447.2,2446.9,0.8281]
[1725200590016,1.04719098,2447.1,2446.9,0.8281]
[1725200590407,1.57691881,2447.2,2446.9,4.9145]
[1725200590408,1.05332332,2447.2,2446.9,4.9145]
[1725200590610,0.00613234,2447.2,2446.9,4.0359]
[1725200590817,0.00613234,2447.2,2446.9,4.44459]
[1725200591116,0.00613234,2447.2,2447.0,4.0864]
[1725200591307,0.00613234,2447.2,2447.1,4.0864]
[1725200591900,0.00613234,2447.2,2447.1,10.49506]
[1725200592314,1.04719098,2447.7,2447.4,0.40861]
[1725200592505,1.04719098,2447.7,2447.3,0.40862]
[1725200592705,1.04719098,2447.7,2447.2,0.4088]
[1725200592916,1.04719098,2448.0,2447.5,3.2078]
[1725200593121,2.62459198,2448.3,2447.4,13.87071303]
[1725200593122,1.04719098,2448.2,2447.8,3.61633]
[1725200593415,0.00613234,2448.2,2448.0,0.4085]
[1725200593619,0.00613234,2448.2,2447.9,0.40853]
[1725200594016,0.00613234,2448.2,2447.8,3.21393234]
[1725200594521,0.00613234,2448.2,2447.8,0.00613234]
[1725200595105,0.00613234,2448.2,2447.8,0.41468234]
[1725200595519,0.00613234,2448.2,2447.8,0.00613234]
[1725200595712,0.00613234,2448.2,2447.8,0.41467234]
[1725200595913,0.00613234,2448.2,2447.8,0.00613234]
[1725200596310,0.00613234,2448.2,2447.8,0.41467234]
[1725200596716,0.00613234,2448.2,2447.8,4.09093234]
[1725200597025,0.00613234,2448.2,2448.1,0.4085]
[1725200597221,0.00613234,2448.2,2448.1,6.4085]
[1725200597523,0.00613234,2448.2,2448.1,15.79365961]
[1725200598522,0.00613234,2448.2,2448.1,9.38515961]
[1725200598719,0.00613234,2448.2,2448.1,4.0848]
[1725200598914,0.00613234,2448.2,2448.1,10.4933]
[1725200599111,0.00613234,2448.2,2448.1,15.8601969]
[1725200599518,0.00613234,2448.2,2448.1,9.8601969]
[1725200599712,1.85159098,2449.1,2448.6,0.40841]
[1725200599909,0.40832,2449.2,2448.6,0.40841]
[1725200600323,1.04719098,2449.4,2448.5,0.793]
[1725200600528,3.2078,2448.9,2448.5,0.793]
[1725200600709,3.21393234,2448.9,2448.4,3.2078]
[1725200601021,0.4084,2448.7,2448.4,3.2078]
[1725200601216,3.21393234,2448.9,2448.4,3.2078]
[1725200601217,0.40839,2448.8,2448.4,3.2078]
[1725200602014,3.21393234,2448.9,2448.4,3.2078]
[1725200602739,0.40838,2448.8,2448.4,3.2078]
[1725200603923,0.4084,2448.7,2448.4,3.2078]
[1725200604630,3.21393234,2448.9,2448.4,3.2078]
[1725200604832,3.21393234,2448.9,2448.0,0.7604]
[1725200605125,0.40844,2448.5,2448.0,0.7604]
[1725200606424,0.40842,2448.6,2448.0,1.16891]
[1725200606626,0.40839,2448.8,2448.2,0.40847]
[1725200607029,0.4084,2448.7,2448.1,0.40849]
[1725200607726,0.40844,2448.5,2448.0,0.7604]
[1725200607934,0.40846,2448.4,2447.9,0.8015]
[1725200608124,0.40844,2448.5,2447.9,1.21003]
[1725200608426,0.40842,2448.6,2448.0,0.4085]
[1725200608929,0.00613234,2448.9,2448.6,0.4084]
[1725200609135,0.00613234,2448.9,2448.5,0.40842]
[1725200609325,0.00613234,2448.9,2448.2,4.148]
[1725200609630,0.40842,2448.6,2448.2,4.148]
[1725200609831,0.40843,2448.5,2448.2,4.148]
[1725200610217,0.40842,2448.6,2448.2,4.148]
[1725200610427,3.2078,2448.8,2448.2,4.148]
[1725200610630,0.00613234,2448.9,2448.2,4.148]
[1725200611034,0.00613234,2448.9,2447.9,1.0033069]
[1725200611035,3.2078,2448.7,2447.9,0.8015]
[1725200611334,4.67341899,2448.8,2447.9,1.21002]
[1725200611335,4.0068,2448.8,2447.9,1.21002]
[1725200611633,0.40843,2448.5,2447.9,1.21002]
[1725200611848,0.40842,2448.6,2448.0,0.40851]
[1725200612031,0.40843,2448.5,2447.9,1.21002]
[1725200612230,4.0068,2448.8,2448.0,0.40851]
[1725200612532,0.40842,2448.6,2448.0,0.40851]
[1725200612734,0.40845,2448.4,2447.9,0.8015]
[1725200613434,4.59131553,2448.7,2447.9,1.21002]
[1725200613435,0.40842,2448.6,2447.9,1.21002]
[1725200614122,4.59131553,2448.7,2447.9,0.8015]
[1725200614325,0.00613234,2448.9,2448.1,3.2078]
[1725200614833,0.00613234,2448.9,2448.5,0.40842]
[1725200615027,0.00613234,2448.9,2448.6,0.40841]
[1725200615233,0.00613234,2448.9,2448.4,3.2078]
[1725200615439,0.00613234,2448.9,2448.6,0.4084]
[1725200615634,0.00613234,2448.9,2448.7,0.40839]
[1725200616722,0.00613234,2448.9,2448.8,4.084]
[1725200616928,0.00613234,2448.9,2448.8,9.70992158]
[1725200617229,0.00613234,2448.9,2448.8,15.70992158]
[1725200617536,0.00613234,2448.9,2448.8,9.70992158]
[1725200617736,0.00613234,2448.9,2448.8,15.70992158]
[1725200617939,3.2078,2449.3,2449.0,0.40833]
[1725200618231,3.61602,2449.8,2449.2,0.40831]
[1725200618844,1.04719098,2450.3,2448.7,3.2078]
[1725200618845,1.4819,2450.4,2449.3,8.51601765]
[1725200619032,0.40821,2449.8,2449.6,0.00613234]
[1725200619334,0.40823,2449.7,2449.6,0.00613234]
[1725200619833,4.49063,2449.7,2449.6,0.00613234]
[1725200620039,4.0824,2449.7,2449.6,0.00613234]
[1725200620332,0.41430234,2450.1,2449.6,0.00613234]
[1725200620831,0.40818,2450.0,2449.6,0.00613234]
[1725200621033,0.00613234,2450.1,2449.6,0.00613234]
[1725200621232,0.41429234,2450.1,2449.6,0.00613234]
[1725200621541,0.00613234,2450.1,2449.7,0.40823]
[1725200621724,0.00613234,2450.1,2449.7,6.02118378]
[1725200621924,0.00613234,2450.1,2449.8,0.40821]
[1725200622733,0.00613234,2450.1,2449.9,0.40819]
[1725200623237,0.00613234,2450.1,2449.8,0.4082]
[1725200623633,0.00613234,2450.1,2449.7,0.7728]
[1725200623833,0.00613234,2450.1,2449.7,1.18103]
[1725200624037,0.00613234,2450.1,2449.7,0.7728]
[1725200624335,0.00613234,2450.1,2449.7,1.18101]
[1725200625136,0.00613234,2450.1,2449.8,0.40821]
[1725200625336,0.00613234,2450.1,2449.8,9.67448323]
[1725200625536,0.00613234,2450.1,2449.9,4.0816]
[1725200625837,3.2078,2450.9,2450.0,5.18408323]
[1725200626036,3.2078,2450.9,2450.3,0.40812]
[1725200626242,3.61588,2450.6,2450.0,5.18408323]
[1725200626434,0.40811,2450.4,2450.0,5.18408323]
[1725200626637,0.00400331,2450.4,2449.7,0.7728]
[1725200626944,0.00400331,2450.4,2449.9,0.40819]
[1725200627238,0.00400331,2450.4,2450.1,0.40816]
[1725200627626,0.00400331,2450.4,2450.0,0.40817]
[1725200627825,0.00400331,2450.4,2449.9,3.2078]
[1725200628035,0.00400331,2450.4,2450.1,5.39259666]
[1725200628241,0.00400331,2450.4,2450.0,5.39259666]
[1725200628541,0.40813,2450.3,2449.8,5.39259666]
[1725200628739,0.40813,2450.3,2449.8,5.80080666]
[1725200628942,0.40813,2450.3,2449.8,0.40821]
[1725200629133,0.40815,2450.2,2449.7,1.18102]
[1725200629442,0.40815,2450.2,2449.8,5.34350168]
[1725200629628,0.40814,2450.3,2449.8,5.34350168]
[1725200629940,0.40816,2450.2,2449.8,5.34350168]
[1725200630140,0.00400331,2450.4,2449.8,5.34350168]
[1725200630849,0.40815,2450.2,2449.8,5.34350168]
[1725200632344,0.40814,2450.3,2449.8,5.75171168]
[1725200633147,0.40815,2450.2,2449.8,5.34350168]
[1725200633448,0.40817,2450.1,2449.7,0.7728]
[1725200633944,4.61777172,2450.2,2449.7,1.18102]
[1725200633945,0.40815,2450.2,2449.7,1.18102]
[1725200634341,0.40814,2450.3,2449.7,1.18102]
[1725200634652,3.21180331,2450.4,2450.0,0.40817]
[1725200634653,0.00400331,2450.4,2450.0,0.40817]
[1725200634838,0.00400331,2450.4,2449.8,5.24868832]
[1725200635038,0.40814,2450.3,2449.8,5.65688832]
[1725200635332,0.41212331,2450.4,2449.8,5.65688832]
[1725200635640,0.41212331,2450.4,2449.9,0.40819]
[1725200635940,0.41212331,2450.4,2449.8,5.24868832]
[1725200635941,0.41212331,2450.4,2449.8,5.65688832]
[1725200636144,0.00400331,2450.4,2450.0,5.24098367]
[1725200636537,0.41213331,2450.4,2449.9,5.64917367]
[1725200636737,0.40813,2450.3,2449.9,0.40819]
[1725200636945,0.40816,2450.2,2449.7,0.7728]
[1725200637139,0.40816,2450.2,2449.7,1.18103]
[1725200637340,0.40818,2450.0,2449.8,5.24905635]
[1725200637845,1.02430331,2450.4,2449.7,0.7728]
[1725200637846,0.00400331,2450.4,2449.7,0.7728]
[1725200638049,1.02430331,2450.4,2449.7,0.7728]
[1725200638448,0.40823,2449.7,2449.6,0.00613234]
[1725200638638,3.2078,2450.0,2449.6,0.00613234]
[1725200638839,0.40823,2449.7,2449.6,0.00613234]
[1725200639850,13.69843,2449.7,2449.6,0.00613234]
[1725200640042,0.40828,2449.4,2449.1,0.817]
[1725200640239,12.84479001,2449.7,2448.9,0.8163]
[1725200640438,0.40833,2449.1,2448.9,0.8163]
[1725200640643,0.40832,2449.2,2448.6,3.2078]
[1725200640851,3.61609,2449.4,2448.6,3.6162]
[1725200641042,3.61609,2449.4,2448.8,0.00613234]
[1725200641043,0.00613234,2449.2,2448.8,0.00613234]
[1725200642053,0.41445234,2449.2,2448.8,0.00613234]
[1725200642246,0.00613234,2449.2,2448.8,0.00613234]
[1725200642552,0.41445234,2449.2,2448.8,0.00613234]
[1725200642753,0.40833,2449.1,2448.8,0.00613234]
[1725200642944,0.00613234,2449.2,2448.8,0.00613234]
[1725200643244,1.02061,2449.7,2448.8,0.00613234]
[1725200643245,3.2078,2449.9,2449.1,3.2078]
[1725200643443,1.04719098,2450.0,2448.9,13.54669021]
[1725200643444,3.2078,2449.6,2448.9,13.54669021]
[1725200643642,4.7131838,2449.4,2448.9,0.40836]
[1725200643952,3.2078,2449.6,2448.8,3.21393234]
[1725200644144,0.40828,2449.5,2448.8,3.21393234]
[1725200644347,0.00400331,2449.4,2448.8,3.21393234]
[1725200644655,0.00400331,2449.4,2448.9,5.27478567]
[1725200644854,0.00400331,2449.4,2449.2,3.2078]
[1725200645051,0.00400331,2449.4,2449.3,5.7046]
[1725200645244,0.00400331,2449.4,2449.3,1.6222]
[1725200645444,0.00400331,2449.4,2449.2,5.33875623]
[1725200645750,0.00400331,2449.4,2448.9,2.03055]
[1725200646144,0.00400331,2449.4,2448.9,10.503066]
[1725200646652,0.00400331,2449.4,2448.9,10.094716]
[1725200646855,0.00400331,2449.4,2448.9,10.503066]
[1725200647051,0.00400331,2449.4,2448.9,7.295266]
[1725200647653,0.00400331,2449.4,2448.9,10.503066]
[1725200647950,0.00400331,2449.4,2449.0,0.40835]
[1725200648548,0.00400331,2449.4,2448.9,10.503066]
[1725200649153,0.00400331,2449.4,2449.0,0.40834]
[1725200651055,0.00400331,2449.4,2449.1,0.40833]
[1725200651250,0.00400331,2449.4,2449.0,0.40835]
[1725200651450,0.00400331,2449.4,2449.2,5.35438405]
[1725200651847,0.00400331,2449.4,2449.1,0.40832]
[1725200652055,0.00400331,2449.4,2448.9,1.6222]
[1725200652362,0.41229331,2449.4,2448.9,1.6222]
[1725200652661,0.00400331,2449.4,2449.0,0.40834]
[1725200652861,0.00400331,2449.4,2448.9,2.03055]
[1725200653049,0.00400331,2449.4,2448.9,1.6222]
[1725200653253,0.00400331,2449.4,2448.9,2.03056]
[1725200653658,0.41228331,2449.4,2448.9,1.6222]
[1725200653959,0.00400331,2449.4,2448.9,2.03056]
[1725200654163,0.00400331,2449.4,2449.0,0.40834]
[1725200654349,0.00400331,2449.4,2449.1,0.40833]
[1725200654557,0.00400331,2449.4,2448.9,1.6222]
[1725200654752,0.4083,2449.3,2448.9,1.6222]
[1725200655164,0.40831,2449.2,2448.9,1.6222]
[1725200655363,0.40833,2449.1,2448.8,0.00613234]
[1725200655860,4.30438643,2449.3,2448.8,0.00613234]
[1725200656065,4.30438643,2449.3,2448.8,0.41450234]
[1725200656261,4.71269643,2449.3,2448.8,0.00613234]
[1725200656855,5.35157741,2449.3,2448.8,0.00613234]
[1725200657054,3.2078,2449.2,2448.8,0.00613234]
[1725200657352,0.40836,2448.9,2448.8,0.00613234]
[1725200658066,13.291,2448.9,2447.8,3.2078]
[1725200658273,0.40848,2448.2,2447.9,0.8143]
[1725200658567,1.04719098,2448.3,2447.9,0.8143]
[1725200658755,1.04719098,2448.6,2448.1,3.2078]
[1725200658955,4.25499098,2448.7,2448.1,3.61629]
[1725200659159,4.25499098,2448.7,2448.2,0.00613234]
[1725200659661,4.66339098,2448.7,2448.2,0.00613234]
[1725200659863,4.25499098,2448.7,2448.2,0.00613234]
[1725200660571,3.6162,2448.7,2448.2,0.00613234]
[1725200661061,0.40841,2448.6,2448.2,0.00613234]
[1725200661260,3.2078,2448.7,2448.2,0.00613234]
[1725200661660,3.2078,2448.7,2448.3,0.40845]
[1725200661862,3.2078,2448.7,2448.4,0.7949]
[1725200662367,1.04719098,2448.9,2448.5,0.40843]
[1725200662569,1.04719098,2449.0,2448.6,0.8122]
[1725200662761,1.45555098,2449.0,2448.6,0.8122]
[1725200662962,0.40841,2448.6,2448.4,0.7949]
[1725200663560,3.2078,2448.8,2448.2,0.00613234]
[1725200663759,0.40846,2448.3,2448.2,0.00613234]
[1725200664171,4.49326,2448.3,2448.2,0.00613234]
[1725200664377,1.0212,2448.2,2447.4,3.2078]
[1725200664672,4.25566342,2448.0,2447.0,2.42457]
[1725200664971,0.40859,2447.6,2447.0,1.6071]
[1725200665365,0.00613234,2447.5,2447.1,0.00613234]
[1725200665871,0.41473234,2447.5,2447.1,0.00613234]
[1725200666069,0.00613234,2447.5,2447.1,0.00613234]
[1725200666373,0.40861,2447.4,2447.1,0.00613234]
[1725200666770,0.40865,2447.2,2447.1,0.00613234]
[1725200667578,4.49505,2447.2,2447.1,0.00613234]
[1725200668772,4.0864,2447.2,2447.1,0.00613234]
[1725200668979,0.00613234,2447.5,2447.1,4.09253234]
[1725200669184,0.00613234,2447.5,2447.2,0.7958]
[1725200669364,3.62254234,2447.5,2447.2,0.7958]
[1725200669567,7.30033234,2447.5,2447.1,0.00613234]
[1725200669770,3.62253234,2447.5,2447.1,0.00613234]
[1725200670274,3.21393234,2447.5,2447.1,0.00613234]
[1725200670776,3.62254234,2447.5,2447.1,0.00613234]
[1725200671081,3.21393234,2447.5,2447.1,0.41479234]
[1725200671276,3.21393234,2447.5,2447.1,0.00613234]
[1725200671982,0.00613234,2447.5,2447.1,0.00613234]
[1725200672374,3.21393234,2447.5,2447.1,0.00613234]
[1725200672579,0.00613234,2447.5,2447.1,0.00613234]
[1725200672776,0.40863,2447.4,2447.1,0.00613234]
[1725200673277,0.40863,2447.3,2447.1,0.00613234]
[1725200673680,3.21393234,2447.5,2447.1,0.00613234]
[1725200673880,0.40864,2447.3,2447.1,0.00613234]
[1725200674177,0.40865,2447.2,2447.1,0.00613234]
[1725200674682,0.40864,2447.3,2447.1,0.00613234]
[1725200675185,1.19372,2447.4,2447.1,0.00613234]
[1725200676275,0.40864,2447.3,2447.1,0.00613234]
[1725200677073,0.40865,2447.2,2447.1,0.00613234]
[1725200677478,4.49505,2447.2,2447.1,0.00613234]
[1725200677973,7.70285,2447.2,2447.1,0.00613234]
[1725200678177,0.40872,2446.8,2446.3,0.4088]
[1725200678379,12.11277884,2447.2,2446.2,1.6128]
[1725200678580,0.40868,2447.1,2446.5,0.40876]
[1725200678769,7.3708,2447.2,2446.5,0.40876]
[1725200678972,0.4087,2446.9,2446.4,3.2078]
[1725200679166,7.3708,2447.2,2446.5,0.40876]
[1725200679167,0.40866,2447.1,2446.5,0.40876]
[1725200679370,0.40866,2447.1,2446.5,5.34927234]
[1725200679580,7.77945,2447.2,2446.7,0.40873]
[1725200679979,7.77945,2447.2,2446.6,0.40874]
[1725200680283,4.163,2447.2,2446.7,0.40873]
[1725200680578,4.57165,2447.2,2446.8,0.7842]
[1725200680777,0.40865,2447.2,2446.8,0.7842]
[1725200681372,0.40866,2447.1,2446.8,0.7842]
[1725200681576,0.40864,2447.3,2446.8,1.1929]
[1725200681769,0.7851,2447.4,2446.8,0.7842]
[1725200681978,0.40869,2447.0,2446.8,0.7842]
[1725200682183,0.7851,2447.4,2446.8,0.7842]
[1725200682392,0.40869,2447.0,2446.5,0.40876]
[1725200682580,0.40869,2447.0,2446.4,3.62269234]
[1725200682789,3.2078,2447.2,2446.4,3.62269234]
[1725200682976,0.40867,2447.1,2446.6,0.40874]
[1725200683186,3.2078,2447.2,2446.4,3.21393234]
[1725200683484,0.40868,2447.0,2446.5,0.40875]
[1725200683680,0.4087,2446.9,2446.5,0.40875]
[1725200683882,4.56104032,2447.1,2446.4,3.41819245]
[1725200684085,0.7851,2447.4,2446.7,0.40872]
[1725200684274,1.04786342,2448.1,2447.3,3.2078]
[1725200684479,0.40852,2448.0,2447.6,3.2078]
[1725200684674,0.40853,2447.9,2447.6,3.2078]
[1725200684875,3.02609513,2448.5,2447.6,3.2078]
[1725200684876,0.40856,2447.7,2447.6,3.2078]
[1725200685275,0.00613234,2447.9,2447.6,7.2934]
[1725200685481,0.00613234,2447.9,2447.6,3.2078]
[1725200685884,0.00613234,2447.9,2447.6,3.61637]
[1725200686584,0.00613234,2447.9,2447.6,3.2078]
[1725200686978,0.00613234,2447.9,2447.6,3.61638]
[1725200687283,0.00613234,2447.9,2447.6,3.2078]
[1725200687486,0.00613234,2447.9,2447.6,3.61637]
[1725200687685,0.00613234,2447.9,2447.6,3.2078]
[1725200688377,0.40856,2447.7,2447.6,3.2078]
[1725200688777,0.40856,2447.7,2447.4,0.00613234]
[1725200688778,4.0856,2447.7,2447.4,0.00613234]
[1725200689079,0.7697,2447.8,2447.4,0.00613234]
[1725200689281,0.4086,2447.5,2447.4,0.00613234]
[1725200689885,0.00613234,2447.9,2447.4,10.09173234]
[1725200690081,0.00613234,2447.9,2447.7,3.2078]
[1725200690306,0.41467234,2447.9,2447.7,3.2078]
[1725200690476,0.00613234,2447.9,2447.7,3.2078]
[1725200690678,0.00613234,2447.9,2447.8,4.49415]
[1725200690886,0.00613234,2447.9,2447.8,5.26275]
[1725200691486,0.00613234,2447.9,2447.8,4.8542]
[1725200691680,0.00613234,2447.9,2447.8,5.26275]
[1725200692983,0.00613234,2447.9,2447.8,4.8542]
[1725200693183,0.00613234,2447.9,2447.8,5.26275]
[1725200693686,0.40855,2447.8,2447.7,3.2078]
[1725200693881,0.41467234,2447.9,2447.7,3.2078]
[1725200694081,0.00613234,2447.9,2447.7,3.2078]
[1725200694596,0.41467234,2447.9,2447.7,3.2078]
[1725200694793,0.40855,2447.8,2447.7,3.2078]
[1725200695995,5.31765,2447.8,2447.7,3.2078]
[1725200696191,0.40858,2447.7,2447.4,0.00613234]
[1725200696590,1.23205,2447.8,2447.4,0.00613234]
[1725200696893,0.8235,2447.8,2447.4,0.00613234]
[1725200697093,0.40856,2447.7,2447.4,0.00613234]
[1725200697284,0.40858,2447.6,2447.4,0.00613234]
[1725200697486,0.40857,2447.7,2447.4,0.00613234]
[1725200697990,1.23205,2447.8,2447.4,0.41473234]
[1725200698388,1.23205,2447.8,2447.6,3.2078]
[1725200698789,1.23205,2447.8,2447.4,0.41473234]
[1725200700298,1.23205,2447.8,2447.4,0.00613234]
[1725200700299,0.8235,2447.8,2447.4,0.00613234]
[1725200700599,1.4301,2447.5,2447.4,0.00613234]
[1725200700897,1.4301,2447.5,2446.9,4.148]
[1725200700898,0.40865,2447.2,2446.9,4.148]
[1725200701100,0.40865,2447.2,2446.8,0.78]
[1725200701294,2.06936342,2447.5,2446.8,0.78]
[1725200701295,0.40867,2447.1,2446.8,0.78]
[1725200701599,0.40867,2447.1,2446.6,3.61653]
[1725200701789,0.40869,2447.0,2446.6,3.62266234]
[1725200702094,0.8161,2447.2,2446.6,3.21393234]
[1725200702299,0.40872,2446.8,2446.6,3.21393234]
[1725200703092,0.40873,2446.7,2446.6,3.21393234]
[1725200703289,0.40873,2446.7,2446.6,0.00613234]
[1725200704401,10.49593,2446.7,2446.6,0.00613234]
[1725200704605,10.49593,2446.7,2446.2,3.2078]
[1725200704606,0.4088,2446.3,2446.2,3.2078]
[1725200704995,4.4968,2446.3,2446.2,3.2078]
[1725200705803,0.40883,2446.1,2446.0,0.00613234]
[1725200706004,1.04992927,2446.2,2446.0,0.00613234]
[1725200706203,3.12774592,2446.5,2446.0,0.00613234]
[1725200706204,1.05606161,2446.5,2446.0,0.00613234]
[1725200706406,0.41489234,2446.5,2446.0,0.00613234]
[1725200706710,0.40878,2446.4,2446.0,0.00613234]
[1725200707092,0.00613234,2446.5,2446.0,0.00613234]
[1725200707093,0.40883,2446.1,2446.0,0.00613234]
[1725200707307,1.57179513,2446.1,2445.3,3.2078]
[1725200707506,0.40891,2445.6,2445.2,0.79]
[1725200707694,3.6167,2445.7,2445.2,0.79]
[1725200707898,3.2078,2445.7,2445.2,0.79]
[1725200708095,1.04843365,2445.9,2445.2,0.79]
[1725200708302,0.40891,2445.6,2445.2,0.79613234]
[1725200708715,0.40891,2445.6,2445.2,0.00613234]
[1725200709413,0.40893,2445.5,2445.2,0.00613234]
[1725200709603,0.40892,2445.6,2445.2,0.00613234]
[1725200709802,4.9889077,2445.6,2445.2,0.00613234]
[1725200710201,4.5799877,2445.6,2445.2,0.00613234]
[1725200710405,4.0896,2445.5,2445.2,0.00613234]
[1725200710611,0.40896,2445.3,2445.2,0.00613234]
[1725200710807,13.8128955,2445.4,2445.2,0.00613234]
[1725200711002,4.0896,2445.3,2445.2,0.00613234]
[1725200711405,1.5172,2445.4,2445.2,0.00613234]
[1725200711910,0.8221,2445.7,2445.2,0.00613234]
[1725200712099,1.81673365,2445.9,2445.2,0.00613234]
[1725200712304,0.40889,2445.8,2445.2,0.00613234]
[1725200712498,0.40892,2445.6,2445.2,0.00613234]
[1725200712711,8.71121302,2445.8,2445.2,0.00613234]
[1725200712912,0.40896,2445.3,2445.2,0.00613234]
[1725200713114,0.40895,2445.4,2445.2,0.00613234]
[1725200713304,4.59784334,2445.7,2445.2,0.00613234]
[1725200713506,0.7851,2445.7,2445.2,0.00613234]
[1725200713711,1.194,2445.7,2445.2,0.00613234]
[1725200713906,0.7851,2445.7,2445.2,0.00613234]
[1725200714111,3.9567,2446.0,2445.2,0.00613234]
[1725200714304,4.7418,2446.0,2445.3,3.2078]
[1725200714509,4.7418,2446.0,2445.4,1.18694]
[1725200714710,4.7418,2446.0,2445.4,0.778]
[1725200715209,0.7851,2446.0,2445.6,0.40891]